fUST/lending_fUST_20250905
["ID","MTS","AMOUNT","RATE_DAILY","PERIOD"]
[383611654,1757033439399,-480.0,0.00015241,2]
[383611655,1757033439409,-271.25,0.00015241,2]
[383611656,1757033439419,-480.0,0.00015241,2]
[383611658,1757033439428,-8907.97,0.00015241,2]
[383611659,1757033439437,-480.0,0.00015241,2]
[383611660,1757033439446,-480.0,0.00015241,2]
[383611661,1757033439456,-480.0,0.00015241,2]
[383611662,1757033439465,-480.0,0.00015241,2]
[383611663,1757033439474,-480.0,0.00015241,2]
[383611664,1757033439483,-480.0,0.00015241,2]
[383611665,1757033439493,-480.0,0.00015241,2]
[383611666,1757033439502,-480.0,0.00015241,2]
[383611667,1757033439511,-480.0,0.00015241,2]
[383611668,1757033439520,-480.0,0.00015241,2]
[383611669,1757033439529,-480.0,0.00015241,2]
[383611670,1757033439538,-480.0,0.00015241,2]
[383611671,1757033439547,-500.0,0.00015242,2]
[383611672,1757033439557,-661.55442087,0.00015243,2]
[383611673,1757033439566,-198921.03789338,0.00015243,2]
[383611674,1757033439576,-500.0,0.00015273,2]
[383611676,1757033439585,-500.0,0.00015273,2]
[383611677,1757033439594,-500.0,0.00015273,2]
[383611678,1757033439603,-500.0,0.00015273,2]
[383611679,1757033439613,-500.0,0.00015273,2]
[383611680,1757033439622,-500.0,0.00015273,2]
[383611681,1757033439632,-480.0,0.00015341,2]
[383611683,1757033439642,-162.96,0.00015341,2]
[383611685,1757033439652,-480.0,0.00015341,2]
[383611686,1757033439663,-480.0,0.00015341,2]
[383611687,1757033439673,-480.0,0.00015341,2]
[383611688,1757033439683,-480.0,0.00015341,2]
[383611689,1757033439692,-480.0,0.00015341,2]
[383611691,1757033439701,-480.0,0.00015341,2]
[383611693,1757033439712,-480.0,0.00015341,2]
[383611695,1757033439722,-480.44560732,0.00015341,2]
[383611697,1757033439732,-480.0,0.00015341,2]
[383611699,1757033439741,-480.0,0.00015341,2]
[383611701,1757033439752,-480.0,0.00015341,2]
[383611703,1757033439761,-480.0,0.00015341,2]
[383611705,1757033439770,-480.73411835,0.00015341,2]
[383611706,1757033439779,-480.0,0.00015341,2]
[383611708,1757033439788,-480.0,0.00015341,2]
[383611709,1757033439798,-373.04717275,0.00015341,2]
[383611710,1757033439807,-480.0,0.00015341,2]
[383611711,1757033439816,-480.0,0.00015341,2]
[383611712,1757033439826,-480.0,0.00015341,2]
[383611713,1757033439835,-480.0,0.00015341,2]
[383611714,1757033439844,-480.0,0.00015341,2]
[383611715,1757033439854,-480.0,0.00015341,2]
[383611716,1757033439863,-208.32049847,0.00015341,2]
[383611717,1757033439872,-480.0,0.00015341,2]
[383611718,1757033439882,-480.0,0.00015341,2]
[383611719,1757033439891,-480.0,0.00015341,2]
[383611720,1757033439900,-480.0,0.00015341,2]
[383611722,1757033439910,-481.02390499,0.00015341,2]
[383611723,1757033439919,-480.0,0.00015341,2]
[383611724,1757033439928,-480.0,0.00015341,2]
[383611725,1757033439938,-480.0,0.00015341,2]
[383611726,1757033439947,-249.64307821,0.00015341,2]
[383611727,1757033439957,-481.28218176,0.00015341,2]
[383611728,1757033439966,-480.0,0.00015341,2]
[383611729,1757033439975,-480.0,0.00015341,2]
[383611730,1757033439985,-480.7210916,0.00015341,2]
[383611731,1757033439994,-480.25529325,0.00015341,2]
[383611732,1757033440003,-480.0,0.00015341,2]
[383611733,1757033440013,-500.0,0.00015341,2]
[383611734,1757033440022,-500.0,0.00015341,2]
[383611735,1757033440032,-500.0,0.00015341,2]
[383611736,1757033440041,-480.0,0.00015341,2]
[383611737,1757033440050,-480.0,0.00015341,2]
[383611738,1757033440060,-480.0,0.00015341,2]
[383611740,1757033440069,-480.0,0.00015341,2]
[383611741,1757033440078,-482.77117779,0.00015341,2]
[383611742,1757033440088,-480.0,0.00015341,2]
[383611743,1757033440097,-480.0,0.00015341,2]
[383611744,1757033440106,-480.0,0.00015341,2]
[383611745,1757033440116,-487.00521783,0.00015341,2]
[383611746,1757033440125,-481.73385312,0.00015341,2]
[383611747,1757033440134,-480.0,0.00015341,2]
[383611748,1757033440143,-480.0,0.00015341,2]
[383611749,1757033440152,-163.81908211,0.00015341,2]
[383611750,1757033440161,-480.0,0.00015341,2]
[383611751,1757033440171,-480.0,0.00015341,2]
[383611752,1757033440180,-480.0,0.00015341,2]
[383611753,1757033440190,-220.96856204,0.00015341,2]
[383611754,1757033440199,-480.0,0.00015341,2]
[383611755,1757033440208,-480.0,0.00015341,2]
[383611756,1757033440218,-554.32,0.00015341,2]
[383611757,1757033440229,-514.12,0.00015341,2]
[383611758,1757033440238,-555.53,0.00015341,2]
[383611759,1757033440248,-480.0,0.00015341,2]
[383611760,1757033440257,-480.0,0.00015341,2]
[383611761,1757033440268,-480.0,0.00015341,2]
[383611762,1757033440277,-480.0,0.00015341,2]
[383611763,1757033440287,-518.21017361,0.00015341,2]
[383611764,1757033440297,-480.0,0.00015341,2]
[383611765,1757033440306,-480.0,0.00015341,2]
[383611766,1757033440317,-480.0,0.00015341,2]
[383611767,1757033440327,-480.0,0.00015341,2]
[383611768,1757033440341,-480.0,0.00015341,2]
[383611769,1757033440351,-480.0,0.00015341,2]
[383611770,1757033440360,-480.0,0.00015341,2]
[383611771,1757033440370,-480.0,0.00015341,2]
[383611772,1757033440380,-480.0,0.00015341,2]
[383611773,1757033440390,-480.0,0.00015341,2]
[383611774,1757033440399,-480.0,0.00015341,2]
[383611775,1757033440409,-480.0,0.00015341,2]
[383611776,1757033440418,-480.0,0.00015341,2]
[383611777,1757033440427,-500.0,0.00015342,2]
[383611778,1757033440436,-480.0,0.00015511,2]
[383611779,1757033440445,-480.0,0.00015511,2]
[383611780,1757033440454,-480.0,0.00015511,2]
[383611781,1757033440463,-823.14,0.00015511,2]
[383611782,1757033440472,-284.63083601,0.00015511,2]
[383611783,1757033440479,-480.0,0.00015511,2]
[383611784,1757033440488,-480.0,0.00015511,2]
[383611785,1757033440498,-480.0,0.00015511,2]
[383611786,1757033440507,-480.0,0.00015511,2]
[383611787,1757033440515,-395.6423415,0.00015511,2]
[383611788,1757033440524,-480.0,0.00015513,2]
[383611789,1757033440533,-480.0,0.00015513,2]
[383611790,1757033440542,-480.0,0.00015513,2]
[383611791,1757033440551,-480.0,0.00015513,2]
[383611792,1757033440560,-480.0,0.00015513,2]
[383611793,1757033440570,-480.0,0.00015513,2]
[383611794,1757033440579,-480.0,0.00015513,2]
[383611795,1757033440587,-800.94,0.00015513,2]
[383611796,1757033440597,-480.0,0.00015513,2]
[383611797,1757033440606,-480.0,0.00015513,2]
[383611798,1757033440615,-480.0,0.00015513,2]
[383611799,1757033440625,-480.0,0.00015513,2]
[383611800,1757033440633,-480.0,0.00015515,2]
[383611801,1757033440642,-8907.97,0.00015515,2]
[383611802,1757033440651,-480.0,0.00015515,2]
[383611803,1757033440661,-480.0,0.00015515,2]
[383611804,1757033440670,-480.0,0.00015515,2]
[383611805,1757033440679,-500.0,0.00015516,2]
[383611806,1757033440688,-500.0,0.00015614,2]
[383611807,1757033440697,-500.0,0.00015614,2]
[383611808,1757033440706,-500.0,0.00015615,2]
[383611809,1757033440715,-480.0,0.00015785,2]
[383611810,1757033440724,-480.0,0.00015785,2]
[383611811,1757033440733,-823.14,0.00015785,2]
[383611812,1757033440742,-480.0,0.00015785,2]
[383611813,1757033440751,-480.0,0.00015785,2]
[383611814,1757033440769,-480.0,0.00015785,2]
[383611815,1757033440781,-480.0,0.00015787,2]
[383611816,1757033440790,-480.0,0.00015787,2]
[383611817,1757033440800,-800.94,0.00015787,2]
[383611818,1757033440809,-480.0,0.00015787,2]
[383611819,1757033440818,-480.0,0.00015787,2]
[383611820,1757033440828,-480.0,0.00015787,2]
[383611821,1757033440837,-480.0,0.00015787,2]
[383611822,1757033440846,-480.0,0.00015789,2]
[383611823,1757033440856,-8907.97,0.00015789,2]
[383611824,1757033440866,-480.0,0.00015789,2]
[383611825,1757033440876,-480.0,0.00015789,2]
[383611826,1757033440886,-480.0,0.00015789,2]
[383611827,1757033440895,-500.0,0.00015821,2]
[383611828,1757033440904,-300.0,0.00015925,2]
[383611829,1757033440914,-300.0,0.00015925,2]
[383611830,1757033440925,-300.0,0.00015925,2]
[383611831,1757033440935,-300.0,0.00015925,2]
[383611832,1757033440945,-300.0,0.00015925,2]
[383611833,1757033440955,-300.0,0.00015925,2]
[383611834,1757033440964,-300.0,0.00015925,2]
[383611835,1757033440975,-300.0,0.00015925,2]
[383611836,1757033440986,-300.0,0.00015925,2]
[383611837,1757033440995,-300.0,0.00015925,2]
[383611838,1757033441005,-300.0,0.00015925,2]
[383611839,1757033441013,-300.0,0.00015925,2]
[383611840,1757033441022,-300.0,0.00015925,2]
[383611841,1757033441030,-300.0,0.00015925,2]
[383611842,1757033441038,-300.0,0.00015925,2]
[383611843,1757033441047,-600.0,0.00015925,2]
[383611844,1757033441056,-480.0,0.00016059,2]
[383611845,1757033441065,-480.0,0.00016059,2]
[383611846,1757033441074,-823.14,0.00016059,2]
[383611847,1757033441084,-480.0,0.00016059,2]
[383611848,1757033441093,-480.0,0.00016059,2]
[383611849,1757033441103,-480.0,0.00016059,2]
[383611850,1757033441112,-480.0,0.00016061,2]
[383611851,1757033441122,-480.0,0.00016061,2]
[383611852,1757033441131,-800.94,0.00016061,2]
[383611853,1757033441141,-480.0,0.00016061,2]
[383611854,1757033441151,-480.0,0.00016061,2]
[383611855,1757033441161,-480.0,0.00016061,2]
[383611856,1757033441171,-480.0,0.00016061,2]
[383611857,1757033441183,-480.0,0.00016063,2]
[383611858,1757033441192,-8907.97,0.00016063,2]
[383611859,1757033441203,-480.0,0.00016063,2]
[383611860,1757033441213,-480.0,0.00016063,2]
[383611861,1757033441222,-480.0,0.00016063,2]
[383611862,1757033441233,-480.0,0.00016333,2]
[383611863,1757033441242,-480.0,0.00016333,2]
[383611864,1757033441252,-823.14,0.00016333,2]
[383611865,1757033441261,-480.0,0.00016333,2]
[383611866,1757033441271,-480.0,0.00016333,2]
[383611867,1757033441281,-480.0,0.00016333,2]
[383611868,1757033441291,-480.0,0.00016335,2]
[383611869,1757033441301,-307.18,0.00016335,2]
[383611870,1757033441311,-800.94,0.00016335,2]
[383611871,1757033441320,-567.27,0.00016335,2]
[383611872,1757033441331,-480.0,0.00016335,2]
[383611873,1757033441343,-480.0,0.00016335,2]
[383611874,1757033441353,-486.02,0.00016335,2]
[383611875,1757033441362,-480.0,0.00016337,2]
[383611876,1757033441371,-8907.97,0.00016337,2]
[383611877,1757033441381,-353.13,0.00016337,2]
[383611878,1757033441390,-480.0,0.00016337,2]
[383611879,1757033441399,-522.95,0.00016337,2]
[383611880,1757033441410,-188.10297854,0.00016438,2]
[383611881,1757033441419,-1529.7792969,0.00016457,2]
[383611882,1757033441428,-492.2,0.00016607,2]
[383611883,1757033441437,-480.0,0.00016607,2]
[383611884,1757033441447,-823.14,0.00016607,2]
[383611885,1757033441456,-800.94,0.00016609,2]
[383611886,1757033441465,-8907.97,0.00016611,2]
[383611887,1757033441475,-420.0,0.00016636,2]
[383611888,1757033441484,-609.88155162,0.00016756,2]
[383611889,1757033441493,-823.14,0.00016881,2]
[383611890,1757033441502,-800.94,0.00016883,2]
[383611891,1757033441512,-8907.97,0.00016885,2]
[383611892,1757033441521,-417.15472785,0.00016948,2]
[383611893,1757033441531,-217.5338025,0.00016948,2]
[383611894,1757033441539,-160.0,0.00016948,2]
[383611895,1757033441549,-232.93421481,0.00016948,2]
[383611896,1757033441558,-530.40833076,0.00016948,2]
[383611897,1757033441567,-846.4110323,0.00016948,2]
[383611898,1757033441577,-823.14,0.00017155,2]
[383611899,1757033441586,-800.94,0.00017157,2]
[383611900,1757033441596,-8907.97,0.00017159,2]
[383611901,1757033441605,-823.14,0.00017429,2]
[383611902,1757033441614,-800.94,0.00017431,2]
[383611903,1757033441623,-8907.97,0.00017433,2]
[383611904,1757033441633,-720.0,0.00017518,2]
[383611905,1757033441642,-501.20981589,0.00017601,2]
[383611906,1757033441651,-823.14,0.00017703,2]
[383611907,1757033441661,-800.94,0.00017705,2]
[383611908,1757033441670,-8907.97,0.00017707,2]
[383611909,1757033441679,-1529.7792969,0.00017741,2]
[383611910,1757033441687,-823.14,0.00017976,2]
[383611911,1757033441695,-800.94,0.00017979,2]
[383611912,1757033441708,-8907.97,0.00017981,2]
[383611913,1757033441718,-587.0,0.00018204,2]
[383611914,1757033441727,-823.14,0.0001825,2]
[383611915,1757033441737,-800.94,0.00018253,2]
[383611916,1757033441746,-8907.97,0.00018255,2]
[383611917,1757033441755,-823.14,0.00018524,2]
[383611918,1757033441765,-800.94,0.00018527,2]
[383611919,1757033441774,-8907.97,0.00018529,2]
[383611920,1757033441784,-823.14,0.00018798,2]
[383611921,1757033441794,-800.94,0.00018801,2]
[383611922,1757033441803,-8907.97,0.00018803,2]
[383611923,1757033441812,-250.0,0.00018881,2]
[383611924,1757033441822,-1529.7792969,0.00019025,2]
[383611925,1757033441831,-823.14,0.00019072,2]
[383611926,1757033441841,-800.94,0.00019075,2]
[383611927,1757033441850,-8907.97,0.00019077,2]
[383611928,1757033441859,-864.0,0.0001927,20]
[383611929,1757033441869,-823.14,0.00019346,2]
[383611930,1757033441880,-800.94,0.00019349,2]
[383611931,1757033441890,-8907.97,0.00019351,2]
[383611932,1757033441904,-823.14,0.0001962,2]
[383611933,1757033441913,-800.94,0.00019623,2]
[383611934,1757033441922,-8907.97,0.00019625,2]
[383611935,1757033441932,-823.14,0.00019894,2]
[383611936,1757033441942,-800.94,0.00019896,2]
[383611937,1757033441952,-8907.97,0.00019899,2]
[383611938,1757033441962,-7273.81455033,0.000199,2]
[383611939,1757033441971,-823.0,0.00019919,2]
[383611940,1757033441981,-501.20981589,0.00020061,2]
[383611941,1757033441992,-823.14,0.00020168,2]
[383611942,1757033442002,-800.94,0.0002017,2]
[383611943,1757033442012,-8907.97,0.00020173,2]
[383611944,1757033442021,-524.753443,0.00020187,2]
[383611945,1757033442031,-1529.7792969,0.00020309,2]
[383611946,1757033442171,-1024.7357974,0.00020409,2]
[383611947,1757033442181,-823.14,0.00020442,2]
[383611948,1757033442191,-800.94,0.00020444,2]
[383611949,1757033442200,-6356.51053499,0.00020447,2]
[383611963,1757033443046,-352.06243708,0.00020447,2]
[383611964,1757033443153,-431.92412687,0.00020447,2]
[383611973,1757033445990,-1024.73579726,0.00020447,2]
[383611978,1757033665208,1002.32,0.00025,30]
[383611985,1757034437133,-169.27952251,0.00013699,2]
[383611986,1757034439114,-329.23624749,0.00013699,2]
[383611987,1757034439137,-265.55206299,0.00014936,2]
[383611988,1757034439159,-33.85838704,0.00015036,2]
[383611989,1757034446117,-457.50882741,0.00015036,2]
[383611990,1757034446140,-547.64546372,0.00015073,2]
[383611991,1757034551135,179.498,0.00014579,20]
[383612044,1757034632256,-249.77583171,0.00015073,2]
[383612046,1757034632268,-273.62263705,0.00015073,2]
[383612149,1757034640056,-251.553859,0.00015073,2]
[383612160,1757034643076,-384.57973191,0.00015073,2]
[383612161,1757034643086,-3028.84092002,0.00015105,2]
[383612162,1757034643098,-7538.84185708,0.00015105,2]
[383612163,1757034643108,-300.0,0.00015106,2]
[383612164,1757034643118,-1135.0,0.00015112,2]
[383612165,1757034643127,-800.31,0.00015128,3]
[383612166,1757034643136,-443.84,0.00015128,3]
[383612167,1757034643146,-221.92,0.00015128,3]
[383612168,1757034643156,-665.78,0.00015128,3]
[383612169,1757034643165,-480.0,0.00015133,2]
[383612170,1757034643175,-480.0,0.00015133,2]
[383612171,1757034643184,-480.0,0.00015133,2]
[383612172,1757034643194,-1009.63,0.00015133,2]
[383612173,1757034643203,-284.63083601,0.00015133,2]
[383612174,1757034643212,-480.0,0.00015133,2]
[383612175,1757034643222,-480.0,0.00015133,2]
[383612176,1757034643232,-480.0,0.00015133,2]
[383612177,1757034643242,-480.0,0.00015133,2]
[383612178,1757034643251,-480.0,0.00015133,2]
[383612179,1757034643261,-480.0,0.00015133,2]
[383612180,1757034643271,-480.0,0.00015133,2]
[383612181,1757034643280,-480.0,0.00015133,2]
[383612182,1757034643289,-480.0,0.00015133,2]
[383612183,1757034643299,-480.0,0.00015133,2]
[383612184,1757034643308,-480.0,0.00015133,2]
[383612185,1757034643318,-480.0,0.00015134,2]
[383612186,1757034643327,-152.94087464,0.00015134,2]
[383612187,1757034643337,-521.48093464,0.00015134,2]
[383612188,1757034643346,-500.0,0.00015134,2]
[383612189,1757034643355,-330.66991882,0.00015134,2]
[383612190,1757034643365,-256.70591889,0.00015134,2]
[383612191,1757034643375,-500.0,0.00015134,2]
[383612192,1757034643384,-186.07985698,0.00015134,2]
[383612193,1757034643393,-480.0,0.00015134,2]
[383612194,1757034643403,-480.0,0.00015134,2]
[383612195,1757034643413,-480.0,0.00015134,2]
[383612196,1757034643422,-480.0,0.00015134,2]
[383612197,1757034643432,-480.0,0.00015134,2]
[383612198,1757034643441,-480.0,0.00015134,2]
[383612199,1757034643451,-480.0,0.00015134,2]
[383612200,1757034643460,-951.12,0.00015134,2]
[383612201,1757034643469,-480.0,0.00015134,2]
[383612202,1757034643479,-480.0,0.00015134,2]
[383612203,1757034643489,-480.0,0.00015134,2]
[383612204,1757034643498,-480.0,0.00015134,2]
[383612205,1757034643508,-480.0,0.00015135,2]
[383612206,1757034643517,-338.22708933,0.00015135,2]
[383612207,1757034643527,-480.0,0.00015135,2]
[383612208,1757034643537,-480.0,0.00015135,2]
[383612209,1757034643546,-480.0,0.00015135,2]
[383612210,1757034643556,-480.0,0.00015135,2]
[383612211,1757034643566,-480.0,0.00015135,2]
[383612212,1757034643576,-166.81,0.00015135,2]
[383612213,1757034643586,-480.0,0.00015135,2]
[383612214,1757034643596,-480.0,0.00015135,2]
[383612215,1757034643606,-238.32251221,0.00015135,2]
[383612216,1757034643619,-372.07748779,0.00015135,2]
[383612217,1757034643628,-480.0,0.00015135,2]
[383612218,1757034643640,-578.23,0.00015135,2]
[383612219,1757034643650,-480.0,0.00015135,2]
[383612220,1757034643659,-293.34439729,0.00015135,2]
[383612221,1757034643669,-480.0,0.00015135,2]
[383612222,1757034643678,-480.0,0.00015135,2]
[383612223,1757034643688,-480.0,0.00015135,2]
[383612224,1757034643697,-162.96,0.00015135,2]
[383612225,1757034643709,-480.0,0.00015135,2]
[383612226,1757034643718,-480.0,0.00015135,2]
[383612227,1757034643729,-180.98794671,0.00015135,2]
[383612228,1757034643739,-480.0,0.00015135,2]
[383612229,1757034643749,-271.25,0.00015135,2]
[383612230,1757034643758,-480.0,0.00015135,2]
[383612231,1757034643768,-2434.51054706,0.00015135,2]
[383612247,1757034890846,224.69,0.00012329,2]
[383612248,1757034901483,187.24,0.00012329,2]
[383612249,1757034912394,156.03,0.00012329,2]
[383612250,1757034923179,780.18,0.00012329,2]
[383612253,1757035318588,221.92,0.00012329,2]
[383612254,1757035329068,184.93,0.00012329,2]
[383612255,1757035339583,154.11,0.00012329,2]
[383612256,1757035350001,770.56,0.00012329,2]
[383612257,1757035532607,-502.93839,0.00013699,2]
[383612259,1757035627115,-631.10808175,0.0001493,2]
[383612260,1757035627136,-245.02925896,0.0001493,2]
[383612261,1757035630141,-1324.78827768,0.0001493,2]
[383612262,1757035695011,2000.0,0.00014622,7]
[383612266,1757035824850,1861.0,0.00029319,60]
[383612299,1757035832363,-276.97546468,0.00014781,2]
[383612300,1757035832374,-282.29245067,0.0001493,2]
[383612301,1757035832385,-76.8970553,0.00014932,2]
[383612302,1757035832398,-1599.25863487,0.00014932,2]
[383612303,1757035832408,-878.85818965,0.00014973,2]
[383612304,1757035832419,-1410.65559949,0.00014973,2]
[383612305,1757035832428,-300.0,0.00015015,2]
[383612306,1757035832438,-300.0,0.00015015,2]
[383612307,1757035832448,-300.0,0.00015015,2]
[383612308,1757035832458,-1200.0,0.00015015,2]
[383612309,1757035832467,-10567.6827771,0.00015016,2]
[383612310,1757035832477,-1200.0,0.00015019,2]
[383612311,1757035832486,-661.55442087,0.00015028,2]
[383612312,1757035832495,-480.0,0.00015028,2]
[383612313,1757035832504,-480.0,0.00015028,2]
[383612314,1757035832513,-1001.86,0.00015028,2]
[383612315,1757035832522,-480.0,0.00015028,2]
[383612316,1757035832531,-480.0,0.00015028,2]
[383612317,1757035832540,-494.31640952,0.00015028,2]
[383612318,1757035832550,-480.0,0.00015028,2]
[383612319,1757035832559,-482.10550256,0.00015028,2]
[383612320,1757035832568,-480.03512195,0.00015028,2]
[383612321,1757035832577,-482.70268227,0.00015028,2]
[383612322,1757035832587,-485.79305953,0.00015028,2]
[383612323,1757035832597,-481.54893944,0.00015028,2]
[383612324,1757035832606,-500.0,0.00015028,2]
[383612325,1757035832615,-363.75084002,0.00015028,2]
[383612326,1757035832624,-500.0,0.00015028,2]
[383612327,1757035832633,-500.0,0.00015028,2]
[383612328,1757035832643,-500.0,0.00015028,2]
[383612329,1757035832652,-500.0,0.00015028,2]
[383612330,1757035832661,-500.0,0.00015028,2]
[383612331,1757035832670,-500.0,0.00015028,2]
[383612332,1757035832680,-500.0,0.00015028,2]
[383612333,1757035832689,-500.0,0.00015028,2]
[383612334,1757035832700,-500.0,0.00015028,2]
[383612335,1757035832710,-500.0,0.00015028,2]
[383612336,1757035832720,-500.0,0.00015028,2]
[383612337,1757035832729,-500.0,0.00015028,2]
[383612338,1757035832738,-500.0,0.00015028,2]
[383612339,1757035832747,-500.0,0.00015028,2]
[383612340,1757035832756,-500.0,0.00015028,2]
[383612341,1757035832766,-500.0,0.00015028,2]
[383612342,1757035832775,-500.0,0.00015028,2]
[383612343,1757035832784,-600.92530196,0.00015028,2]
[383612344,1757035832793,-500.0,0.00015028,2]
[383612345,1757035832804,-500.0,0.00015028,2]
[383612346,1757035832813,-500.0,0.00015028,2]
[383612347,1757035832825,-500.0,0.00015028,2]
[383612348,1757035832834,-500.0,0.00015028,2]
[383612349,1757035832843,-500.0,0.00015028,2]
[383612350,1757035832852,-310.58445831,0.00015028,2]
[383612351,1757035832864,-189.41554169,0.00015028,2]
[383612352,1757035832874,-284.12554839,0.00015028,2]
[383612353,1757035832885,-215.87445161,0.00015028,2]
[383612354,1757035832894,-500.0,0.00015028,2]
[383612355,1757035832904,-250.0,0.00015028,2]
[383612356,1757035832914,-500.0,0.00015028,2]
[383612357,1757035832923,-500.0,0.00015028,2]
[383612358,1757035832934,-480.0,0.00015029,2]
[383612359,1757035832944,-480.0,0.00015029,2]
[383612360,1757035832954,-480.0,0.00015029,2]
[383612361,1757035832964,-480.0,0.00015029,2]
[383612362,1757035832974,-480.0,0.00015029,2]
[383612363,1757035832983,-480.0,0.00015029,2]
[383612364,1757035832992,-480.0,0.00015029,2]
[383612365,1757035833001,-480.0,0.00015029,2]
[383612366,1757035833010,-210.64846163,0.00015029,2]
[383612367,1757035833020,-480.0,0.0001503,2]
[383612368,1757035833029,-75.1927876,0.00015031,2]
[383612369,1757035833041,-404.8072124,0.00015031,2]
[383612370,1757035833050,-480.0,0.00015031,2]
[383612371,1757035833060,-287.43986752,0.00015031,2]
[383612372,1757035833211,-500.0,0.00015027,2]
[383612373,1757035833221,-500.0,0.00015027,2]
[383612374,1757035833230,-375.39320417,0.00015027,2]
[383612383,1757035838240,-124.60679583,0.00015027,2]
[383612384,1757035838252,-500.0,0.00015027,2]
[383612385,1757035838263,-175.39320417,0.00015027,2]
[383612386,1757035838478,-107.0565391,0.00015027,2]
[383612387,1757035838489,-500.0,0.00015027,2]
[383612388,1757035838501,-500.0,0.00015027,2]
[383612389,1757035838512,-632.06275831,0.00015027,2]
[383612390,1757035838523,-500.0,0.00015027,2]
[383612391,1757035838534,-500.0,0.00015027,2]
[383612392,1757035838545,-500.0,0.00015027,2]
[383612393,1757035838557,-500.0,0.00015027,2]
[383612394,1757035838570,-500.0,0.00015027,2]
[383612395,1757035838580,-500.0,0.00015027,2]
[383612396,1757035838592,-500.0,0.00015027,2]
[383612397,1757035838603,-500.0,0.00015027,2]
[383612398,1757035838613,-500.0,0.00015027,2]
[383612399,1757035838624,-522.5177336,0.00015027,2]
[383612400,1757035838635,-500.0,0.00015027,2]
[383612401,1757035838647,-500.0,0.00015027,2]
[383612402,1757035838659,-500.0,0.00015027,2]
[383612403,1757035838668,-436.53653113,0.00015027,2]
[383612404,1757035838679,-500.0,0.00015027,2]
[383612405,1757035838691,-500.0,0.00015027,2]
[383612406,1757035838701,-500.0,0.00015027,2]
[383612407,1757035838711,-500.0,0.00015027,2]
[383612408,1757035838721,-500.0,0.00015027,2]
[383612409,1757035838731,-500.0,0.00015027,2]
[383612410,1757035838740,-500.0,0.00015027,2]
[383612411,1757035838751,-232.33824103,0.00015027,2]
[383612412,1757035838763,-351.90720064,0.00015027,2]
[383612413,1757035838773,-500.0,0.00015027,2]
[383612414,1757035838785,-500.0,0.00015027,2]
[383612415,1757035838796,-500.0,0.00015027,2]
[383612416,1757035838807,-500.0,0.00015027,2]
[383612417,1757035838818,-591.5430619,0.00015027,2]
[383612418,1757035838829,-500.0,0.00015027,2]
[383612419,1757035838840,-500.0,0.00015027,2]
[383612420,1757035838852,-500.0,0.00015027,2]
[383612421,1757035838862,-500.0,0.00015027,2]
[383612422,1757035838874,-500.0,0.00015027,2]
[383612423,1757035838887,-500.0,0.00015027,2]
[383612424,1757035838898,-500.0,0.00015027,2]
[383612425,1757035838909,-500.0,0.00015027,2]